Cogmind - Beta 17 @@@ ROGUE MODE // 2026.08.01 @ 18:24:43 Player: 4R-ZE3 Result: Self-destructed Performance ------------- Evolutions (1) 500 Regions Visited (3) 600 Robots Destroyed (25) 125 Value Destroyed (697) 697 Prototype IDs (1) 20 Alien Tech Used (0) 0 Bonus (0) 0 TOTAL SCORE: 1942 Bonus ------- None Cogmind --------- Core Integrity 239/400 Matter 295/300 Energy 64/100 System Corruption 0% Temperature Cool (74) Movement Core (400) Ox7 Location -9/Materials Parts ------- > --- POWER (1) -------- (None) > --- PROPULSION (2) --- (None) > --- UTILITY (4) ------ Improved Heat Sink Large Storage Unit > --- WEAPON (2) ------- Particle Gun > --- INVENTORY (15) --- Heavy Ion Engine Light Nuclear Core Wheel Wheel Improved Heat Sink Experimental Sensor Array Beam Rifle Beam Rifle Beam Rifle Beam Cannon Assault Rifle Mace Peak State ------------ > --- POWER ------------ Light Nuclear Core > --- PROPULSION ------- Light Treads Wheel > --- UTILITY ---------- Large Storage Unit Experimental Sensor Array > --- WEAPON ----------- Beam Cannon Beam Cannon > --- INVENTORY -------- Light Ion Engine Light Nuclear Core Wheel Improved Heat Sink Hacking Suite Beam Rifle Beam Rifle Beam Rifle Beam Rifle Particle Gun Beam Cannon Assault Rifle Assault Rifle [Rating: 19] Favorites ----------- Power Light Nuclear Core Engine Light Ion Engine Power Core Light Nuclear Core Propulsion Light Treads Treads Light Treads Wheel Wheel Utility Large Storage Unit Device Improved Heat Sink Storage Large Storage Unit Hackware Hacking Suite Protection Power Shielding Weapon Assault Rifle Energy Gun Particle Gun Energy Cannon Beam Cannon Ballistic Gun Assault Rifle Build | -11 -10 -10 -9 ------- Run | Yrd Mat Min Mat Slots Evolved 2 | . . . 2 Power . | . . . . Propulsion . | . . . . Utility 2 | . . . 2 Weapon . | . . . . Parts Attached 22 | 6 3 6 7 Power 4 | 1 1 1 1 Engine 1 | 1 . . . Core 3 | . 1 1 1 Reactor . | . . . . Propulsion 5 | 2 . 1 2 Treads 4 | 2 . . 2 Leg . | . . . . Wheel 1 | . . 1 . Hover . | . . . . Flight . | . . . . Utility 7 | 1 2 2 2 Device 2 | . . 2 . Storage 2 | 1 1 . . Processor . | . . . . Hackware 1 | . . . 1 Protection 2 | . 1 . 1 Artifact . | . . . . Weapon 6 | 2 . 2 2 Energy Gun 2 | . . . 2 Energy Cannon 2 | . . 2 . Ballistic Gun 2 | 2 . . . Ballistic Cannon . | . . . . Launcher . | . . . . Special Weapon . | . . . . Impact Weapon . | . . . . Slashing Weapon . | . . . . Piercing Weapon . | . . . . Special Melee Weapon . | . . . . Unidentified Prototypes 1 | . . 1 . Parts Lost 10 | . . 1 9 Power 2 | . . . 2 Propulsion 3 | . . 1 2 Utility 2 | . . . 2 Weapon 3 | . . . 3 Highest Loss Streak 9 | . . 1 9 To Critical Strikes . | . . . . Average Backups 10 | 1 9 13 14 Power 1 | . 1 1 2 Propulsion 1 | . 2 1 1 Utility 1 | . 1 2 2 Weapon 5 | . 4 8 7 Tool/Special . | . . . . Unused Backups 9 | . . . 9 Power 2 | . . . 2 Propulsion 1 | . . . 1 Utility 1 | . . . 1 Weapon 5 | . . . 5 Tool/Special . | . . . . Average Slot Usage (%) 96 | . 97 99 93 Engine 1 | . 2 . . Core 12 | . 11 14 10 Treads 23 | . 28 17 18 Wheel 3 | . . 10 3 Device 4 | . . 10 11 Storage 13 | . 14 14 11 Hackware 2 | . . . 10 Protection 8 | . 11 3 6 Energy Cannon 9 | . . 20 21 Ballistic Gun 16 | . 28 8 . Peak Build Rating 19 | 6 11 19 18 Average Rating 11 | 4 9 12 17 On Entrance 7 | . 6 11 14 Avg Prop Armor Cover (%) 12 | . . 12 12 Naked Turns . | . . . . Heaviest Build 35 | 12 30 32 35 Greatest Support 40 | 40 40 40 40 Greatest Overweight (x) 3 | . . 3 3 Average Overweight (x) . | . . 2 . Largest Inventory Capacity 15 | 8 15 15 15 Average Capacity 13 | 7 12 15 15 Most Carried 15 | 3 13 15 15 Average Carried 10 | 1 9 13 14 Final Capacity 15 | 8 15 15 15 Final Carried 14 | 3 13 14 12 Class Distribution -------------------- 84% | Mutant 15% | Scavenger-Mutant Dominant Class ---------------- Mutant | -10/Materials Mutant | -10/Mines Scavenger-Mutant | -9/Materials Resources | -11 -10 -10 -9 ----------- Run | Yrd Mat Min Mat Matter Collected 699 | 206 348 56 89 Remotely . | . . . . Salvage Created 849 | . 467 91 291 Parts 56 | . 35 5 16 Haulers Intercepted . | . . . . Recyclers Shooed . | . . . . Parts Field Recycled . | . . . . Retrieved Matter . | . . . . Parts Self-Destructed . | . . . . Prevented . | . . . . Parts Restored . | . . . . Kills | -11 -10 -10 -9 ------- Run | Yrd Mat Min Mat Combat Hostiles Destroyed 22 | . 12 2 8 Guns 15 | . 12 2 1 Cannons 7 | . . . 7 Classes Destroyed 5 | . 3 . 2 Worker 1 | . . . 1 Operator 2 | . 2 . . Swarmer 7 | . 3 . 4 Grunt 13 | . 9 2 2 Sentry 2 | . . . 2 Best Kill Streak 6 | . 6 2 4 Combat Bots Only 6 | . 6 2 4 Max Kills in Single Turn 1 | . 1 1 1 Gunslinging . | . . . . Exploded . | . . . . Melee . | . . . . Uniques/NPCs Destroyed . | . . . . Combat | -11 -10 -10 -9 -------- Run | Yrd Mat Min Mat Hostile Shots Fired 176 | . 53 7 116 Missed 36 | . 14 . 22 Hits 140 | . 39 7 94 Projectile 140 | . 39 7 94 Critical Strikes 2 | . . . 2 Damage Taken 1582 | . 485 96 1001 Core 280 | . 74 45 161 Absorbed by Shields . | . . . . Redirected to Shielding 9 | . 3 6 . Core Remaining (%) 76 | 100 . 52 . Volleys Fired 71 | . 44 5 22 Largest 2 | . 2 2 2 Hottest 121 | . 40 40 121 Shots Fired 142 | . 88 10 44 Gun 104 | . 88 10 6 Cannon 38 | . . . 38 Launcher . | . . . . Special . | . . . . Kinetic 98 | . 88 10 . Thermal 44 | . . . 44 Explosive . | . . . . Electromagnetic . | . . . . Robot Hit Streak 13 | . 13 3 9 Robot Miss Streak 4 | . 4 1 3 Penetration Max . | . . . . Secondary Targets 3 | . 2 . 1 Max Gunslinging Chain 1 | . 1 . 1 Shots Hit Robots 95 | . 62 7 26 Core Hits 44 | . 26 5 13 Critical Kills . | . . . . Critical Parts Destroyed 2 | . 2 . . Critical Strikes 3 | . 2 . 1 Burn 1 | . . . 1 Destroy 2 | . 2 . . Melee Attacks . | . . . . Impact . | . . . . Slashing . | . . . . Piercing . | . . . . Sneak Attacks . | . . . . Combat Hostiles . | . . . . Follow-up Attacks . | . . . . Damage Inflicted 1348 | . 786 83 479 Guns 963 | . 786 83 94 Cannons 385 | . . . 385 Explosions . | . . . . Melee . | . . . . Ramming . | . . . . Kinetic 869 | . 786 83 . Thermal 479 | . . . 479 Explosive . | . . . . Electromagnetic . | . . . . Impact . | . . . . Slashing . | . . . . Piercing . | . . . . Highest Corruption . | . . . . Average Corruption . | . . . . Corruption Purged . | . . . . Corruption Blocked . | . . . . Overload Shots . | . . . . Overflow Damage . | . . . . Projectiles . | . . . . Explosions . | . . . . Melee . | . . . . Knockbacks . | . . . . Impact . | . . . . Kinetic . | . . . . Secondary . | . . . . Self-Inflicted Damage . | . . . . Shots . | . . . . Rammed . | . . . . Targets Rammed . | . . . . Kicked . | . . . . Crushed . | . . . . Highest Temperature 177 | . 4 5 177 Average Temperature 49 | . 1 2 68 Received Heat Transfer 534 | . 237 51 246 Siege Activations . | . . . . Martial Activations . | . . . . Shielding Activations . | . . . . Robots Disrupted . | . . . . Combat Hostiles . | . . . . Robots Corrupted . | . . . . Combat Hostiles . | . . . . Parts Fried . | . . . . Impact Corruptions . | . . . . Robots Melted . | . . . . Combat Hostiles . | . . . . Parts Melted 2 | . . . 2 Heat Transferred 1110 | . . . 1110 Parts Sabotaged . | . . . . Parts Stolen . | . . . . Parts Stripped . | . . . . Power Chain Reactions . | . . . . Alert | -11 -10 -10 -9 ------- Run | Yrd Mat Min Mat Maximum Alert Level . | . . . . Low Security (%) 100 | 100 100 100 100 Level 1 . | . . . . Level 2 . | . . . . Level 3 . | . . . . Level 4 . | . . . . Level 5 . | . . . . High Security . | . . . . Max Security . | . . . . Peak Influence 186 | . 186 50 162 Initial . | . . . . Average 62 | . 86 6 79 Influence Increases 643 | . 356 50 237 Destroy 0b10 Robot/C 440 | . 240 40 160 Destroy 0b10 Robot/NC 15 | . 10 . 5 Destroy Leader 110 | . 60 10 40 Disable Machine 15 | . 15 . . Destroy Structure 3 | . 1 . 2 Lose Combat Pursuer 60 | . 30 . 30 Influence Decreases 643 | . 356 50 237 Time Decay 566 | . 356 50 160 Lost Part 77 | . . . 77 Squads Dispatched 4 | . 3 . 1 Investigation 1 | . 1 . . Extermination . | . . . . Reinforcement 3 | . 2 . 1 Assault . | . . . . Garrison . | . . . . Intercept . | . . . . Searches Triggered . | . . . . Construction Impeded . | . . . . Haulers Reinforced . | . . . . Active Scanning Responses . | . . . . Cargo Convoy Interrupts . | . . . . Stealth | -11 -10 -10 -9 --------- Run | Yrd Mat Min Mat Distress Signals 2 | . 2 . . Communications Jammed . | . . . . Distress Signals . | . . . . Times Spotted 46 | . 26 2 18 Peak Tracking Total 11 | . 5 2 11 Tactical Retreats 3 | . 2 . 1 Traps | -11 -10 -10 -9 ------- Run | Yrd Mat Min Mat Traps Triggered . | . . . . Indirectly . | . . . . Trap Hack Attempts . | . . . . Triggered . | . . . . Disarmed . | . . . . Reprogrammed . | . . . . Reused . | . . . . Traps Extracted . | . . . . Installed . | . . . . Triggered . | . . . . Machines | -11 -10 -10 -9 ---------- Run | Yrd Mat Min Mat Machines Disabled 1 | . 1 . . Max in Single Turn 1 | . 1 . . Machines Repaired . | . . . . Machines Dismantled . | . . . . Machines Sabotaged . | . . . . Overloaded Fab Kills . | . . . . Hacking | -11 -10 -10 -9 --------- Run | Yrd Mat Min Mat Machines Accessed 4 | . 3 . 1 Terminals 3 | . 2 . 1 Fabricators . | . . . . Repair Stations . | . . . . Recycling Units 1 | . 1 . . Scanalyzers . | . . . . Garrison Access . | . . . . Total Hacks 9 | . 7 . 2 Successful 2 | . 2 . . Failed 7 | . 5 . 2 Catastrophic 1 | . . . 1 Database Lockouts . | . . . . Manual 8 | . 6 . 2 Terminals 7 | . 5 . 2 Fabricators . | . . . . Repair Stations . | . . . . Recycling Units 2 | . 2 . . Scanalyzers . | . . . . Garrison Access . | . . . . Terminal Hacks 1 | . 1 . . Robot Analysis 1 | . 1 . . Fabricator Hacks . | . . . . Repair Station Hacks . | . . . . Recycling Unit Hacks . | . . . . Scanalyzer . | . . . . Garrison Access Hacks . | . . . . Unauthorized Hacks 1 | . 1 . . Terminals 1 | . 1 . . Botnet 1 | . 1 . . Fabricators . | . . . . Repair Stations . | . . . . Recycling Units . | . . . . Scanalyzers . | . . . . Garrison Access . | . . . . Data Cores Recovered . | . . . . Used . | . . . . Hacking Detections 4 | . 3 . 1 Full Trace Events 2 | . 1 . 1 Feedback Events . | . . . . Feedback Blocked . | . . . . Robot Schematics Acquired . | . . . . Robots Built . | . . . . Authchips . | . . . . Time . | . . . . Total Robot Build Rating . | . . . . Part Schematics Acquired . | . . . . Parts Built . | . . . . Authchips . | . . . . Time . | . . . . Total Part Build Rating . | . . . . Part Studies Acquired . | . . . . Parts Repaired . | . . . . Time . | . . . . Parts Recycled . | . . . . Recycled Matter . | . . . . Retrieved Matter . | . . . . Retrieved Components . | . . . . Parts Scanalyzed . | . . . . Part Schematics Acquired . | . . . . Parts Damaged . | . . . . Bothacking | -11 -10 -10 -9 ------------ Run | Yrd Mat Min Mat Used RIF Installer . | . . . . Robots Hacked . | . . . . Non-combat . | . . . . Combat . | . . . . Robot Hacks Applied . | . . . . Relay Couplers Released . | . . . . Fabnet Peak Effective % . | . . . . Robots Rewired . | . . . . Allies Hacked . | . . . . Hacks Repelled . | . . . . Allies | -11 -10 -10 -9 -------- Run | Yrd Mat Min Mat Total Allies . | . . . . Largest Group . | . . . . Highest-Rated Group . | . . . . Highest-Rated Ally . | . . . . Total Orders . | . . . . Ally Attacks . | . . . . Total Damage . | . . . . Kills . | . . . . Allies Corrupted . | . . . . Allies Melted . | . . . . Intel | -11 -10 -10 -9 ------- Run | Yrd Mat Min Mat Active Infowar (turns) 1 | . . 1 . Sensors 1 | . . 1 . Robot Analysis Total 1 | . 1 . . Derelict Logs Recovered 1 | . . 1 . Drone Launches . | . . . . Drone Recoveries . | . . . . Exploration | -11 -10 -10 -9 ------------- Run | Yrd Mat Min Mat Turns Passed 1758 | 81 895 412 370 Spaces Moved 932 | 47 426 289 170 Core 5 | 5 . . . Treads 643 | 42 426 46 129 Legs . | . . . . Wheels 284 | . . 243 41 Hover . | . . . . Flight . | . . . . Fastest Speed 50 | 50 160 125 125 Average Speed 149 | 148 160 131 152 Slowest Speed 240 | 160 160 240 240 Overloaded Moves . | . . . . Propulsion Burnouts . | . . . . Robots Hopped . | . . . . Potential Cave-ins . | . . . . Cave-ins Triggered . | . . . . Exploration Rate (%) 41 | 3 52 82 29 Regions Visited 3 Branch Regions 1 Pre-discovered Areas 1 | . . 1 . Known Exits Taken . | . . . . Unknown Exits Taken 3 | 1 1 1 . Scrap Searched 1 | . . 1 . Spaces Dug . | . . . . Terrain Destroyed . | . . . . Melee . | . . . . Projectile . | . . . . AOE . | . . . . Terrain Rammed . | . . . . Walls Destroyed . | . . . . Machines Disabled . | . . . . Actions | -11 -10 -10 -9 --------- Run | Yrd Mat Min Mat Total 1155 | 55 552 311 237 Wait 105 | . 68 6 31 Move 929 | 46 425 288 170 Hop . | . . . . Pick Up 16 | 3 10 . 3 Fast Attach 11 | 6 1 3 1 Attach 7 | . . 3 4 Detach 3 | . . 3 . Swap 6 | . 2 1 3 Drop 7 | . 2 2 3 Fire 71 | . 44 5 22 Melee . | . . . . Ram . | . . . . Kick . | . . . . Crush . | . . . . Escape Stasis . | . . . . Rewire . | . . . . Trap . | . . . . Miscellaneous . | . . . . Route ------- -11/Scrapyard -10/Materials (discovered 2 exits: *Mat / [*Min]) -10/Mines -9/Materials (discovered 2 exits: [*Min] / [*Sto]) History --------- Turn | Location | Event 3 | -11/Scrapyard | Discovered new exit (range 16) 82 | -11/Scrapyard | Entered Materials 307 | -10/Materials | Build established: Mutant 382 | -10/Materials | Discovered new exit (range 14) 683 | -10/Materials | Discovered new exit (range 7) 977 | -10/Materials | Entered Mines 989 | -10/Mines | Met a Derelict bent on vengeance 1006 | -10/Mines | Learned location of Storage (-9) 1268 | -10/Mines | Found a damaged Exp. Sensor Array with a note attached 1271 | -10/Mines | Found Prototype Device 1271 | -10/Mines | Identified Exp. Sensor Array 1383 | -10/Mines | Discovered new exit (range 3) 1389 | -10/Mines | Entered Materials 1389 | -9/Materials | Evolved 2 slots: Utility x2 1460 | -9/Materials | Discovered new exit (range 12) 1735 | -9/Materials | Discovered new exit (range 6) 1759 | -9/Materials | Self-destructed Last Messages --------------- reinforcements to Terminal M010. 01735_ EXIT=FOUND 01735_ Hacking Suite destroyed. 01746_ Beam Cannon destroyed. 01746_ Lgt. Nuclear Core destroyed. 01749_ S-10 Pest suffers critical hit (Burn). 01749_ Lgt. Treads destroyed. 01753_ S-10 Pest destroyed. 01753_ Switching to secondary target: Y-45 Defender. 01753_ K-01 Serf collects debris. 01753_ Lgt. Armor Plating destroyed. 01754_ K-01 Serf collects debris. 01756_ Lgt. Ion Engine melted. 01756_ K-01 Serf destroyed. 01756_ Beam Rifle destroyed. 01757_ Lgt. Nuclear Core destroyed. 01757_ Lgt. Treads destroyed. 01757_ K-01 Serf collects debris. 01759_ K-01 Serf destroyed. Map ----- +----------------------------------------------------+ | ?????????????????????????????????????????????????? | | ?????????????????????????????????????????????????? | | ?????????????????????????????????????????????????? | | ?????????????????????????????????????????????????? | | ?????????????????????????????????????????????????? | | ?????????????????????????????????????????????????? | | ?????????????????????????????????????????????????? | | ?????????????????????????????????????????????????? | | ?????????????????????????????????????????????????? | | ?????????????????????????????????????????????????? | | ?????????????????????????????????????????????????? | | ?????????????????????????????????????????????????? | | ?????????????????????????????????????????????????? | | ?????????????????????????????????????????????????? | | ?????????????????????????????????????????????????? | | ????????????????????????????########?????????????? | | ???????????????????????????? T ???????????? | | ???????????????????????????? ???????????? | | ???????????????????????????? ???????????? | | ???????????????????????????? #??#?????????? | | ???????????????????????????? #? ?????????? | | ???????????????????????????#=== # "??????????? | | ??????????????????##########=== / ???????????? | | ??????????????????#""!"!""##==! #????????????? | | ??????????????????# "!"!" ## #?????????????? | | ????????????? ##### *@## #?????????????? | | ?????????? g =%%%= #?????????????? | | ?????????? Y g < = s ###???????????????? | | ?????????? g ss #?????????????????? | | ??????????? ##### ##u#+###???????????????? | | ??????????????????######### #???????????????? | | ??????????????????????????# #???????????????? | | ??????????????????????????# #???????????????? | | ??????????????????????????# #???????????????? | | ??????????????????????????# #???????????????? | | ??????????????????????????# #???????????????? | | ??????????????????????????#+######???????????????? | | ??????????????????????????# #????????????????????? | | ??????????????????????????# #????????????????????? | | ??????????????????######### ###### #?????????????? | | ??????????????????# ???????? | | ??????????????????# ???????? | | ??????????????????# ???????? | | ??##########??????# ######## ????????? | | ??# #??????# """ #???????????????????? | | ??#! """ #??????# """ #???????????????????? | | ??# """ ######## """ #?????????? ??????? | | ??# """ # #???????? ??????? | | ??# + #??????# ??????? | | ??#[ """ # #### #??????# ??????? | +----------------------------------------------------+ Best States ------------- Heat Dissipation 42 Energy Generation 14 Energy Capacity 160 Matter Stores 300 Matter Capacity 300 Sight Range 16 Terrain Scan Density 10 Armor Coverage 150 Power Shielding 33 Evasion (%) 40 Recoil Reduction 2 Offensive Hacking 10 Item Schematics ----------------- None Robot Schematics ------------------ None Fabricated ------------ Nothing Repaired ---------- Nothing Studied --------- None Alien Tech Used ----------------- None Achievements -------------- None Challenges ------------ None Game ------ Seed ZeronetRestorationBoomstick Manual? 0 Play Time 00:13:39 Cumulative 138.2 hours Start 2026.08.01 @ 01:29:28 End 2026.08.01 @ 18:24:43 Sessions 2 Manual Loads 0 Difficulty Rogue Special Mode None Game No. 152 Rogue 98 Adventurer 54 Explorer 0 Win Type - Total 6 Types 3/0/1/1/0/0/0/0/0/1 Lore% 58 Gallery% 54 Achievement% 50 Wizard Run 0 Options --------- Layout 1 ASCII 0 Keyboard 0 Movement Mouse Keybinds 1 Fullscreen 2 Font 32/Tamsyn Map View 50x35 Zoom Use 0% Tactical HUD 1 Map Filters NONE Filters NONE Steam 1 RUN: 538dd3a8-8224-4d0d-b311-f769b739ebfe